bitfinex/quotes_BTCUSD_20241004
["timestamp","ask_amount","ask_price","bid_price","bid_amount"]
[1728056616183,0.323828,61762.0,61756.0,0.001638]
[1728056616184,0.0323828,61762.0,61756.0,0.001638]
[1728056616432,0.18767798,61763.0,61756.0,0.001638]
[1728056616433,0.161924,61757.0,61756.0,0.001638]
[1728056617580,0.26971426,61757.0,61756.0,0.003638]
[1728056617838,0.45739224,61757.0,61756.0,0.003638]
[1728056618293,0.43200198,61757.0,61756.0,0.003638]
[1728056618765,0.161924,61757.0,61756.0,0.003638]
[1728056618987,0.004,61762.0,61756.0,0.19131598]
[1728056619227,0.323799,61767.0,61756.0,0.001638]
[1728056619454,0.014,61757.0,61756.0,0.165565]
[1728056619702,0.014,61757.0,61756.0,0.002638]
[1728056619941,0.007,61757.0,61756.0,0.002638]
[1728056620160,0.01,61757.0,61756.0,0.002638]
[1728056620608,0.01,61757.0,61756.0,0.004638]
[1728056620834,0.003,61757.0,61756.0,0.003638]
[1728056621060,0.161924,61757.0,61756.0,0.001638]
[1728056621311,0.18731328,61757.0,61756.0,0.001638]
[1728056621761,0.02538928,61757.0,61756.0,0.001638]
[1728056622336,0.02738928,61757.0,61756.0,0.022638]
[1728056622557,0.02638928,61757.0,61756.0,0.011638]
[1728056622980,0.02638928,61757.0,61756.0,0.181565]
[1728056622981,0.02738928,61757.0,61756.0,0.181565]
[1728056623638,0.02738928,61757.0,61756.0,0.171565]
[1728056623639,0.02638928,61757.0,61756.0,0.171565]
[1728056623866,0.02638928,61757.0,61756.0,0.178565]
[1728056624078,0.02738928,61757.0,61756.0,0.178565]
[1728056624996,0.24336624,61776.0,61770.0,0.161889]
[1728056625228,0.24336624,61776.0,61762.0,0.0778]
[1728056625229,0.24336624,61768.0,61762.0,0.0778]
[1728056625426,0.24336624,61776.0,61768.0,0.161895]
[1728056625427,0.161877,61776.0,61768.0,0.161895]
[1728056625642,0.24336624,61775.0,61762.0,0.18767798]
[1728056625862,0.161869,61779.0,61765.0,0.40526824]
[1728056626036,0.161886,61772.0,61765.0,0.40526824]
[1728056626250,0.400982,61789.0,61765.0,0.24336624]
[1728056626440,0.02538451,61774.0,61768.0,0.005]
[1728056626668,0.161886,61772.0,61768.0,0.005]
[1728056627033,0.34914751,61774.0,61767.0,0.18767798]
[1728056627034,0.02538451,61774.0,61767.0,0.18767798]
[1728056627164,0.02538451,61774.0,61770.0,0.323779]
[1728056627383,0.02538451,61774.0,61767.0,0.18767798]
[1728056627384,0.02538451,61774.0,61773.0,0.24336624]
[1728056627595,0.000819,61784.0,61773.0,0.023]
[1728056627799,0.000819,61784.0,61775.0,0.323754]
[1728056628007,0.02620035,61784.0,61782.0,0.161858]
[1728056628252,0.000819,61784.0,61778.0,0.18767798]
[1728056628438,0.000819,61784.0,61783.0,0.161856]
[1728056628706,0.000819,61784.0,61783.0,0.34953398]
[1728056629387,0.000819,61784.0,61783.0,0.18767798]
[1728056629608,0.000819,61784.0,61780.0,0.161862]
[1728056629813,0.000819,61784.0,61781.0,0.16186]
[1728056630025,0.000819,61784.0,61783.0,0.005]
[1728056630391,0.162673,61784.0,61783.0,0.005]
[1728056630803,0.161856,61783.0,61782.0,0.004]
[1728056631002,0.161877,61776.0,61772.0,0.24336624]
[1728056631205,0.161883,61773.0,61772.0,0.24336624]
[1728056631411,0.000819,61784.0,61765.0,0.56717024]
[1728056631412,0.161899,61767.0,61765.0,0.24336624]
[1728056631835,0.161899,61767.0,61761.0,0.323828]
[1728056632063,0.323758,61775.0,61761.0,0.323828]
[1728056632064,0.161903,61766.0,61761.0,0.161912]
[1728056632248,0.161881,61774.0,61767.0,0.323793]
[1728056632453,0.1951,61786.0,61768.0,0.18767798]
[1728056632454,0.32375,61776.0,61768.0,0.18767798]
[1728056632654,0.161875,61776.0,61771.0,0.161887]
[1728056632939,0.161875,61776.0,61765.0,0.008]
[1728056632940,0.24336624,61781.0,61760.0,0.18767798]
[1728056633163,0.323757,61775.0,61765.0,0.24336624]
[1728056633375,0.1619,61767.0,61765.0,0.24336624]
[1728056633831,0.323752,61776.0,61765.0,0.24336624]
[1728056633832,0.001,61776.0,61765.0,0.007]
[1728056634072,0.161896,61768.0,61765.0,0.007]
[1728056634711,0.323789,61769.0,61765.0,0.007]
[1728056634923,0.161901,61766.0,61765.0,0.007]
[1728056635138,0.161899,61767.0,61765.0,0.007]
[1728056635338,0.161899,61767.0,61763.0,0.161908]
[1728056635756,0.02538466,61768.0,61763.0,0.161908]
[1728056635972,0.161902,61766.0,61762.0,0.161909]
[1728056636243,0.161902,61766.0,61760.0,0.18767798]
[1728056636244,0.161914,61761.0,61760.0,0.18767798]
[1728056636463,0.161914,61761.0,61756.0,0.001638]
[1728056636464,0.161923,61758.0,61756.0,0.001638]
[1728056636687,0.485706,61766.0,61765.0,0.01]
[1728056636914,0.0823,61770.0,61756.0,0.001638]
[1728056636915,0.34922816,61759.0,61756.0,0.001638]
[1728056637138,0.161924,61757.0,61756.0,0.001638]
[1728056637351,0.161918,61760.0,61756.0,0.163565]
[1728056637552,0.323809,61765.0,61758.0,0.161922]
[1728056637553,0.02538854,61759.0,61758.0,0.161922]
[1728056637767,0.02538854,61759.0,61757.0,0.18767798]
[1728056637995,0.161922,61758.0,61756.0,0.001638]
[1728056638221,0.323836,61760.0,61756.0,0.001638]
[1728056638438,0.161922,61758.0,61756.0,0.001638]
[1728056638644,0.161919,61759.0,61758.0,0.004]
[1728056639760,0.162919,61759.0,61758.0,0.012]
[1728056639996,0.162919,61759.0,61758.0,0.008]
[1728056640681,0.162919,61759.0,61756.0,0.001638]
[1728056640682,0.161924,61757.0,61756.0,0.001638]
[1728056641157,0.50698278,61757.0,61756.0,0.001638]
[1728056641367,0.435924,61757.0,61756.0,0.001638]
[1728056642543,0.335924,61757.0,61756.0,0.001638]
[1728056643232,0.249224,61757.0,61756.0,0.002638]
[1728056643459,0.171924,61757.0,61756.0,0.002638]
[1728056643693,0.178924,61757.0,61756.0,0.003638]
[1728056643925,0.168924,61757.0,61756.0,0.002638]
[1728056644138,0.167924,61757.0,61756.0,0.002638]
[1728056644399,0.19331411,61757.0,61756.0,0.002638]
[1728056644621,0.18731411,61757.0,61756.0,0.001638]
[1728056645285,0.19131411,61757.0,61756.0,0.001638]
[1728056645542,0.19231411,61757.0,61756.0,0.006638]
[1728056645764,0.18831411,61757.0,61756.0,0.006638]
[1728056645996,0.18831411,61757.0,61756.0,0.011638]
[1728056645997,0.18931411,61757.0,61756.0,0.011638]
[1728056646225,0.18931411,61757.0,61756.0,0.006638]
[1728056646226,0.18831411,61757.0,61756.0,0.006638]
[1728056646640,0.18731411,61757.0,61756.0,0.001638]
[1728056647050,0.19531411,61757.0,61756.0,0.001638]
[1728056647521,0.19131411,61757.0,61756.0,0.001638]
[1728056647971,0.19931411,61757.0,61756.0,0.002638]
[1728056648186,0.173924,61757.0,61756.0,0.002638]
[1728056648440,0.161924,61757.0,61756.0,0.001638]
[1728056648645,0.161924,61757.0,61756.0,0.004638]
[1728056648836,0.161924,61757.0,61756.0,0.005638]
[1728056648837,0.169924,61757.0,61756.0,0.005638]
[1728056649096,0.161924,61757.0,61756.0,0.004638]
[1728056649557,0.165924,61757.0,61756.0,0.004638]
[1728056649990,0.165924,61757.0,61756.0,0.005638]
[1728056650194,0.161924,61757.0,61756.0,0.001638]
[1728056650431,0.161923,61758.0,61756.0,0.001638]
[1728056650641,0.005,61757.0,61756.0,0.001638]
[1728056651259,0.323837,61760.0,61756.0,0.001638]
[1728056651441,0.64781633,61778.0,61756.0,0.001638]
[1728056651442,0.02538952,61757.0,61756.0,0.006638]
[1728056651655,0.18731352,61757.0,61756.0,0.006638]
[1728056651866,0.02938952,61757.0,61756.0,0.001638]
[1728056652082,0.02938952,61757.0,61756.0,0.163565]
[1728056652083,0.02620852,61757.0,61756.0,0.163565]
[1728056652248,0.02620852,61757.0,61756.0,0.001638]
[1728056652463,0.18913252,61757.0,61756.0,0.010638]
[1728056652809,0.02720852,61757.0,61756.0,0.010638]
[1728056653261,0.02820852,61757.0,61756.0,0.017638]
[1728056653489,0.02820852,61757.0,61756.0,0.179565]
[1728056654127,0.02820852,61757.0,61756.0,0.017638]
[1728056655043,0.19013252,61757.0,61756.0,0.017638]
[1728056656234,0.02820852,61757.0,61756.0,0.179565]
[1728056657392,0.02820852,61757.0,61756.0,0.36575171]
[1728056657591,0.002819,61757.0,61756.0,0.46775171]
[1728056657972,0.002819,61757.0,61756.0,0.46575171]
[1728056658835,0.323769,61773.0,61756.0,0.47752471]
[1728056659064,0.24836624,61807.0,61756.0,0.47752471]
[1728056659065,0.24336624,61791.0,61790.0,0.161838]
[1728056659274,0.24336624,61791.0,61790.0,0.29717282]
[1728056659495,0.24356624,61799.0,61798.0,0.56633202]
[1728056659942,0.0002,61799.0,61798.0,0.72951873]
[1728056660425,0.0002,61799.0,61798.0,0.73151873]
[1728056661409,0.00082,61801.0,61800.0,0.186812]
[1728056661668,0.00082,61801.0,61800.0,0.53075434]
[1728056661867,0.00082,61801.0,61800.0,0.52819871]
[1728056662089,0.00082,61801.0,61800.0,0.53019871]
[1728056662577,0.00082,61801.0,61800.0,0.52819871]
[1728056662791,0.00082,61801.0,61800.0,0.53019871]
[1728056664092,0.00082,61801.0,61800.0,0.54419871]
[1728056664346,0.00182,61801.0,61800.0,0.55819871]
[1728056666501,0.00182,61801.0,61800.0,0.80156495]
[1728056666729,0.00182,61801.0,61800.0,0.55819871]
[1728056667200,0.00182,61801.0,61800.0,0.56319871]
[1728056667421,0.00182,61801.0,61800.0,0.65729871]
[1728056668536,0.00975,61816.0,61815.0,0.261773]
[1728056668759,0.00975,61816.0,61815.0,0.72947473]
[1728056669664,0.00975,61816.0,61815.0,0.73047473]
[1728056669859,0.00975,61816.0,61815.0,0.74022473]
[1728056670081,0.00975,61816.0,61815.0,0.73922473]
[1728056670511,0.01075,61816.0,61815.0,0.75322473]
[1728056671596,0.01075,61816.0,61815.0,0.76722473]
[1728056674034,0.01075,61816.0,61815.0,0.299523]
[1728056674896,0.01075,61816.0,61815.0,0.285523]
[1728056675124,0.01075,61816.0,61815.0,0.292523]
[1728056675336,0.01075,61816.0,61815.0,0.278523]
[1728056675337,0.00975,61816.0,61815.0,0.278523]
[1728056675569,0.00975,61816.0,61815.0,0.271523]
[1728056675792,0.010568,61816.0,61815.0,0.278523]
[1728056676060,0.010568,61816.0,61815.0,0.286523]
[1728056676301,0.010568,61816.0,61815.0,0.00975]
[1728056676538,0.010568,61816.0,61815.0,0.190523]
[1728056677010,0.010568,61816.0,61815.0,0.181523]
[1728056677478,0.010568,61816.0,61815.0,0.193523]
[1728056677901,0.010568,61816.0,61815.0,0.183523]
[1728056678121,0.010568,61816.0,61815.0,0.02175]
[1728056678340,0.010568,61816.0,61815.0,0.191523]
[1728056678580,0.010568,61816.0,61815.0,0.183523]
[1728056678859,0.010568,61816.0,61815.0,0.171523]
[1728056679083,0.010568,61816.0,61815.0,0.191523]
[1728056679296,0.010568,61816.0,61815.0,0.180523]
[1728056679755,0.010568,61816.0,61815.0,0.188523]
[1728056680426,0.010568,61816.0,61815.0,0.180523]
[1728056680643,0.010568,61816.0,61815.0,0.189523]
[1728056681078,0.010568,61816.0,61815.0,0.180523]
[1728056681286,0.010568,61816.0,61815.0,0.190523]
[1728056686058,0.010568,61816.0,61815.0,0.40082861]
[1728056687417,0.010568,61816.0,61815.0,0.42968068]
[1728056687684,0.010568,61816.0,61815.0,0.21937507]
[1728056688333,0.010568,61816.0,61815.0,0.21953685]
[1728056689915,0.010568,61816.0,61815.0,0.21955011]
[1728056692948,0.010568,61816.0,61815.0,0.20980011]
[1728056697172,0.010568,61816.0,61815.0,0.20978351]
[1728056697641,0.010568,61816.0,61815.0,0.20978326]
[1728056698993,0.010568,61816.0,61815.0,0.04801026]
[1728056699913,0.172338,61816.0,61815.0,0.04801026]
[1728056702663,0.172338,61816.0,61815.0,0.019]
[1728056707421,0.19770299,61816.0,61815.0,0.019]
[1728056708556,0.03593299,61816.0,61815.0,0.019]
[1728056708772,0.172338,61816.0,61815.0,0.019]
[1728056709242,0.172338,61816.0,61809.0,0.323576]
[1728056709243,0.161774,61815.0,61810.0,0.323571]
[1728056709494,0.161778,61813.0,61808.0,0.323578]
[1728056709731,0.161774,61815.0,61811.0,0.161781]
[1728056709988,0.010568,61816.0,61811.0,0.161781]
[1728056710229,0.010568,61816.0,61808.0,0.323578]
[1728056710230,0.010568,61816.0,61808.0,0.18730561]
[1728056710467,0.013568,61816.0,61815.0,0.161773]
[1728056710967,0.013568,61816.0,61813.0,0.161778]
[1728056710968,0.010568,61816.0,61813.0,0.161778]
[1728056711182,0.172338,61816.0,61815.0,0.005]
[1728056711411,0.010568,61816.0,61811.0,0.007]
[1728056711653,0.495882,61816.0,61815.0,0.008]
[1728056711886,0.334112,61816.0,61807.0,0.323582]
[1728056712118,0.161787,61810.0,61807.0,0.161793]
[1728056712587,0.161781,61812.0,61808.0,0.161791]
[1728056712832,0.334112,61816.0,61806.0,0.00575205]
[1728056713066,0.323562,61812.0,61806.0,0.00575205]
[1728056713298,0.0253666,61812.0,61808.0,0.16179]
[1728056713740,0.161786,61810.0,61806.0,0.16754705]
[1728056713981,0.0253666,61812.0,61806.0,0.00575205]
[1728056714464,0.161783,61811.0,61808.0,0.166791]
[1728056714704,0.161783,61811.0,61808.0,0.163791]
[1728056714947,0.161783,61811.0,61808.0,0.161791]
[1728056715207,0.0253666,61812.0,61806.0,0.01075205]
[1728056715208,0.0253666,61812.0,61806.0,0.25411829]
[1728056715444,0.0253666,61812.0,61811.0,0.161783]
[1728056717755,0.0253666,61812.0,61811.0,0.163783]
[1728056718239,0.010568,61816.0,61812.0,0.16178]
[1728056718524,0.161774,61815.0,61812.0,0.16178]
[1728056718777,0.16178,61812.0,61811.0,0.001]
[1728056719020,0.010568,61816.0,61806.0,0.24911829]
[1728056719021,0.323552,61814.0,61806.0,0.24911829]
[1728056719261,0.323552,61814.0,61807.0,0.161792]
[1728056719262,0.161786,61810.0,61807.0,0.161792]
[1728056719512,0.161781,61812.0,61809.0,0.161787]
[1728056719990,0.161779,61813.0,61810.0,0.161785]
[1728056720194,0.161779,61813.0,61809.0,0.161788]
[1728056720454,0.161781,61812.0,61809.0,0.161788]
[1728056720906,0.161778,61813.0,61810.0,0.161786]
[1728056721370,0.323552,61814.0,61810.0,0.161786]
[1728056721371,0.010568,61816.0,61813.0,0.323556]
[1728056721589,0.010568,61816.0,61815.0,0.161773]
[1728056722075,0.03593276,61816.0,61815.0,0.161773]
[1728056723033,0.012568,61816.0,61815.0,0.161773]
[1728056723540,0.010568,61816.0,61815.0,0.161773]
[1728056723773,0.011568,61816.0,61815.0,0.161773]
[1728056724002,0.013568,61816.0,61815.0,0.161773]
[1728056724485,0.014568,61816.0,61815.0,0.161773]
[1728056724737,0.010568,61816.0,61815.0,0.161773]
[1728056725964,0.013568,61816.0,61815.0,0.161773]
[1728056726413,0.010568,61816.0,61815.0,0.161773]
[1728056726898,0.010568,61816.0,61815.0,0.16594733]
[1728056727087,0.010568,61816.0,61815.0,0.16894733]
[1728056728503,0.010568,61816.0,61815.0,0.17694733]
[1728056732212,0.010568,61816.0,61815.0,0.19994733]
[1728056734376,0.010568,61816.0,61815.0,0.011]
[1728056734377,0.172338,61816.0,61815.0,0.011]
[1728056734619,0.010568,61816.0,61815.0,0.011]
[1728056735650,0.172338,61816.0,61815.0,0.011]
[1728056737125,0.010568,61816.0,61815.0,0.011]
[1728056737372,0.172338,61816.0,61815.0,0.011]
[1728056744591,0.1977037,61816.0,61815.0,0.011]
[1728056748537,0.172338,61816.0,61815.0,0.011]
[1728056751809,0.19770456,61816.0,61815.0,0.011]
[1728056752037,0.2462735,61816.0,61815.0,0.011]
[1728056752249,0.19770456,61816.0,61815.0,0.008]
[1728056752467,0.19970456,61816.0,61815.0,0.008]
[1728056752991,0.174338,61816.0,61815.0,0.008]
[1728056753501,0.34587422,61816.0,61815.0,0.008]
[1728056753741,0.161786,61810.0,61809.0,0.24336624]
[1728056753985,0.323559,61813.0,61809.0,0.24336624]
[1728056754200,0.323559,61813.0,61806.0,0.0057761]
[1728056754430,0.161787,61810.0,61806.0,0.1675711]
[1728056754876,0.323567,61811.0,61806.0,0.1675711]
[1728056755118,0.323559,61813.0,61806.0,0.0057761]
[1728056755350,0.323559,61813.0,61808.0,0.16179]
[1728056755351,0.161783,61811.0,61808.0,0.16179]
[1728056757073,0.161783,61811.0,61806.0,0.1715701]
[1728056757074,0.161787,61810.0,61806.0,0.1715701]
[1728056757302,0.323568,61811.0,61806.0,0.3413681]
[1728056757521,0.02536731,61812.0,61806.0,0.3333681]
[1728056757736,0.161784,61811.0,61808.0,0.16179]
[1728056757952,0.161784,61811.0,61808.0,0.16979]
[1728056758124,0.161784,61811.0,61808.0,0.16179]
[1728056758340,0.161784,61811.0,61808.0,0.16479]
[1728056758770,0.161784,61811.0,61808.0,0.16179]
[1728056759598,0.323558,61813.0,61806.0,0.001636]
[1728056759820,0.010568,61816.0,61806.0,0.325227]
[1728056760030,0.323552,61814.0,61808.0,0.006]
[1728056760306,0.323563,61812.0,61808.0,0.006]
[1728056760491,0.323563,61812.0,61806.0,0.001636]
[1728056760754,0.161786,61810.0,61808.0,0.004]
[1728056760977,0.161786,61810.0,61808.0,0.001]
[1728056761205,0.161784,61811.0,61808.0,0.16179]
[1728056761418,0.323563,61812.0,61806.0,0.001636]
[1728056761419,0.161791,61808.0,61806.0,0.001636]
[1728056761650,0.323573,61810.0,61806.0,0.001636]
[1728056761869,0.161789,61809.0,61806.0,0.165431]
[1728056762085,0.32358,61809.0,61806.0,0.003636]
[1728056762302,0.161793,61807.0,61806.0,0.003636]
[1728056762550,0.16179,61809.0,61806.0,0.003636]
[1728056762783,0.16179,61809.0,61806.0,0.165431]
[1728056763232,0.162786,61810.0,61807.0,0.161792]
[1728056763482,0.162786,61810.0,61808.0,0.323581]
[1728056763483,0.001,61810.0,61808.0,0.323581]
[1728056763726,0.001,61810.0,61808.0,0.003]
[1728056763939,0.001,61810.0,61809.0,0.161788]
[1728056764185,0.001,61810.0,61806.0,0.325227]
[1728056764186,0.010568,61816.0,61807.0,0.0754]
[1728056764434,0.010568,61816.0,61815.0,0.161773]
[1728056765589,0.010568,61816.0,61815.0,0.81211919]
[1728056766059,0.010568,61816.0,61815.0,0.81311919]
[1728056767079,0.010568,61816.0,61815.0,0.82711919]
[1728056767322,0.010568,61816.0,61815.0,0.81211919]
[1728056767562,0.010568,61816.0,61815.0,0.82611919]
[1728056767797,0.010568,61816.0,61815.0,0.84032573]
[1728056768030,0.010568,61816.0,61815.0,0.82632573]
[1728056768325,0.010568,61816.0,61815.0,0.83032573]
[1728056768578,0.010568,61816.0,61815.0,0.84432573]
[1728056769061,0.010568,61816.0,61815.0,0.83032573]
[1728056769303,0.010568,61816.0,61815.0,0.45677954]
[1728056769588,0.010568,61816.0,61815.0,0.26597954]
[1728056769808,0.010568,61816.0,61815.0,0.27997954]
[1728056770046,0.010568,61816.0,61815.0,0.29397954]
[1728056771440,0.010568,61816.0,61815.0,0.89603249]
[1728056771688,0.010568,61816.0,61815.0,0.65266625]
[1728056771958,0.010568,61816.0,61815.0,0.65466625]
[1728056774713,0.010568,61816.0,61815.0,0.65266625]
[1728056774951,0.010568,61816.0,61815.0,0.65466625]
[1728056775443,0.010568,61816.0,61815.0,0.65266625]
[1728056776178,0.010568,61816.0,61815.0,0.29397954]
[1728056781546,0.010568,61816.0,61815.0,0.29597954]
[1728056781769,0.010568,61816.0,61815.0,0.29397954]
[1728056782060,0.010568,61816.0,61815.0,0.48016625]
[1728056782727,0.010568,61816.0,61815.0,0.49073425]
[1728056783441,0.010568,61816.0,61815.0,0.67233425]
[1728056783974,0.010568,61816.0,61815.0,0.67733425]
[1728056784221,0.001019,61819.0,61818.0,0.317265]
[1728056784465,1e-08,61819.0,61818.0,0.65915171]
[1728056784937,1e-08,61819.0,61818.0,0.66115171]
[1728056785374,1e-08,61819.0,61818.0,0.67515171]
[1728056786277,1e-08,61819.0,61818.0,0.68915171]
[1728056787438,1e-08,61819.0,61818.0,0.68715171]
[1728056788590,1e-08,61819.0,61818.0,0.68915171]
[1728056789069,1e-08,61819.0,61818.0,0.68715171]
[1728056789297,1e-08,61819.0,61818.0,0.55915171]
[1728056789509,1e-08,61819.0,61818.0,0.289765]
[1728056790194,1e-08,61819.0,61818.0,0.45295171]
[1728056790671,1e-08,61819.0,61818.0,0.56709171]
[1728056791411,1e-08,61819.0,61818.0,0.57809171]
[1728056791644,1e-08,61819.0,61818.0,0.59409171]
[1728056791877,1e-08,61819.0,61818.0,0.58309171]
[1728056792840,1e-08,61819.0,61818.0,0.54865171]
[1728056793057,1e-08,61819.0,61818.0,0.46195171]
[1728056793494,1e-08,61819.0,61818.0,0.48095171]
[1728056793905,1e-08,61819.0,61818.0,0.45295171]
[1728056794139,1e-08,61819.0,61818.0,0.47995171]
[1728056794361,1e-08,61819.0,61818.0,0.47495171]
[1728056794579,1e-08,61819.0,61818.0,0.46095171]
[1728056794839,1e-08,61819.0,61818.0,0.47495171]
[1728056795288,1e-08,61819.0,61818.0,0.47995171]
[1728056796158,1e-08,61819.0,61818.0,0.72331795]
[1728056796381,0.02535824,61830.0,61829.0,0.284736]
[1728056796605,0.000819,61836.0,61835.0,0.16172]
[1728056796825,0.000819,61836.0,61835.0,0.34907948]
[1728056797926,0.000819,61836.0,61835.0,0.36107948]
[1728056798573,0.000819,61836.0,61835.0,0.17372]
[1728056799495,0.000819,61836.0,61835.0,0.17972]
[1728056801641,0.000819,61836.0,61835.0,0.37131807]
[1728056801808,0.000819,61836.0,61835.0,0.63450478]
[1728056802532,0.000819,61836.0,61835.0,0.28395859]
[1728056804735,0.000819,61836.0,61835.0,0.47131807]
[1728056806933,0.162537,61836.0,61835.0,0.018]
[1728056807148,0.000819,61836.0,61835.0,0.018]
[1728056808091,0.000819,61836.0,61835.0,0.006]
[1728056808320,0.000819,61836.0,61835.0,0.16772]
[1728056808541,0.000819,61836.0,61835.0,0.16672]
[1728056808767,0.000819,61836.0,61835.0,0.005]
[1728056808990,0.000819,61836.0,61835.0,0.16672]
[1728056810637,0.02617694,61836.0,61835.0,0.16672]
[1728056814296,0.02617694,61836.0,61835.0,0.16172]
[1728056814484,0.02617694,61836.0,61835.0,0.17272]
[1728056815613,0.02617694,61836.0,61835.0,0.17872]
[1728056818138,0.02617694,61836.0,61835.0,0.36607948]
[1728056818139,0.000819,61836.0,61835.0,0.36607948]
[1728056818619,0.000819,61836.0,61835.0,0.17872]
[1728056821183,0.000819,61836.0,61835.0,0.36607948]
[1728056821186,0.000819,61836.0,61835.0,0.62926619]
[1728056822793,0.000819,61836.0,61835.0,0.28847]
[1728056828749,0.000819,61836.0,61835.0,0.55715671]
[1728056829005,0.000819,61836.0,61835.0,0.74451619]
[1728056829734,0.000819,61836.0,61835.0,0.73851619]
[1728056829989,0.000819,61836.0,61835.0,0.74951619]
[1728056830467,0.000819,61836.0,61835.0,0.73851619]
[1728056830716,0.000819,61836.0,61835.0,0.74951619]
[1728056831196,0.000819,61836.0,61835.0,0.73851619]
[1728056831438,0.000819,61836.0,61835.0,0.75251619]
[1728056831685,0.000819,61836.0,61835.0,0.73851619]
[1728056831928,0.000819,61836.0,61835.0,0.75251619]
[1728056832703,0.000819,61836.0,61835.0,0.75451619]
[1728056833196,0.000819,61836.0,61835.0,0.75251619]
[1728056833709,0.000819,61836.0,61835.0,0.74151619]
[1728056833936,0.000819,61836.0,61835.0,0.75451619]
[1728056834200,0.000819,61836.0,61835.0,0.74051619]
[1728056834465,0.000819,61836.0,61835.0,0.75451619]
[1728056836395,0.000819,61836.0,61835.0,0.78895619]
[1728056836632,0.000819,61836.0,61835.0,0.86062433]
[1728056836864,0.000819,61836.0,61835.0,0.78895619]
[1728056837136,0.000819,61836.0,61835.0,0.84759396]
[1728056837351,0.000819,61836.0,61835.0,0.84659396]
[1728056837607,0.000819,61836.0,61835.0,0.78895619]
[1728056837844,0.000819,61836.0,61835.0,0.80970389]
[1728056838072,0.000819,61836.0,61835.0,0.77595619]
[1728056838278,0.000819,61836.0,61835.0,0.82370214]
[1728056838502,0.000819,61836.0,61835.0,0.77595619]
[1728056838748,0.000819,61836.0,61835.0,0.82369426]
[1728056839468,1e-06,61837.0,61836.0,0.201158]
[1728056839689,0.000819,61841.0,61840.0,0.291707]
[1728056839915,0.000819,61841.0,61840.0,0.64225319]
[1728056840166,0.000819,61841.0,61840.0,0.94562794]
[1728056840398,1e-06,61841.0,61840.0,0.94562794]
[1728056840611,1e-06,61841.0,61840.0,0.85019319]
[1728056840854,1e-06,61841.0,61840.0,0.94562794]
[1728056841064,1e-06,61841.0,61840.0,0.91974142]
[1728056841296,1e-06,61841.0,61840.0,0.86419319]
[1728056841533,1e-06,61841.0,61840.0,0.9118784]
[1728056841995,1e-06,61841.0,61840.0,0.9258784]
[1728056842225,1e-06,61841.0,61840.0,1.15524464]
[1728056842454,0.00975,61857.0,61855.0,0.161668]
[1728056842722,0.00975,61857.0,61855.0,0.51221419]
[1728056842972,0.00975,61857.0,61856.0,0.161665]
[1728056843195,0.08595,61857.0,61856.0,0.161665]
[1728056844597,0.08595,61857.0,61856.0,0.56921795]
[1728056844598,0.03509764,61857.0,61856.0,0.56921795]
[1728056844854,0.03509764,61857.0,61856.0,0.43185171]
[1728056845092,0.03509764,61857.0,61856.0,0.45485171]
[1728056845093,0.00975,61857.0,61856.0,0.45485171]
[1728056845611,0.00975,61857.0,61856.0,0.44885171]
[1728056846596,0.00975,61857.0,61856.0,0.44785171]
[1728056846846,0.00975,61857.0,61856.0,0.45385171]
[1728056847081,0.00975,61857.0,61856.0,0.46485171]
[1728056847332,0.00975,61857.0,61856.0,0.44785171]
[1728056847571,0.00975,61857.0,61856.0,0.47485171]
[1728056848786,0.00975,61857.0,61856.0,0.47285171]
[1728056850152,5.57211391,61840.0,61836.0,0.03244]
[1728056850393,4.40236741,61840.0,61839.0,0.54276948]
[1728056850636,4.40236741,61840.0,61839.0,1.23833848]
[1728056850859,4.27299941,61840.0,61839.0,1.23833848]
[1728056851095,4.24065741,61840.0,61839.0,0.37206948]
[1728056851321,4.24065741,61840.0,61839.0,0.34906948]
[1728056851788,4.24065741,61840.0,61839.0,0.36306948]
[1728056852520,4.24065741,61840.0,61839.0,0.46306948]
[1728056853016,4.18904505,61840.0,61839.0,0.62625619]
[1728056853230,4.18904505,61840.0,61839.0,0.61225619]
[1728056853453,4.19004505,61840.0,61839.0,0.64925619]
[1728056853681,4.19104505,61840.0,61839.0,0.66225619]
[1728056853919,4.19004505,61840.0,61839.0,0.64825619]
[1728056854140,4.16563859,61840.0,61839.0,0.64825619]
[1728056854841,4.16663859,61840.0,61839.0,0.65525619]
[1728056857971,3.04669495,61840.0,61839.0,0.65525619]
[1728056858900,3.04569495,61840.0,61839.0,0.65525619]
[1728056859605,2.98650497,61840.0,61839.0,0.65525619]
[1728056859830,2.98590497,61840.0,61839.0,0.65525619]
[1728056860097,2.87640497,61840.0,61839.0,0.65525619]
[1728056860320,2.86344573,61840.0,61839.0,0.76799619]
[1728056860549,2.86264573,61840.0,61839.0,0.76799619]
[1728056860774,2.86254573,61840.0,61839.0,0.76799619]
[1728056860992,2.84876673,61840.0,61839.0,0.76799619]
[1728056861203,2.84856673,61840.0,61839.0,0.76799619]
[1728056861439,2.84776673,61840.0,61839.0,0.81558454]
[1728056861646,2.84776673,61840.0,61839.0,2.06678454]
[1728056861870,2.84776673,61840.0,61839.0,2.01919619]
[1728056861871,2.64196891,61840.0,61839.0,2.01919619]
[1728056862092,2.64176891,61840.0,61839.0,2.01919619]
[1728056862541,2.55873591,61840.0,61839.0,2.01919619]
[1728056863074,2.22235891,61840.0,61839.0,2.01919619]
[1728056863286,2.20978891,61840.0,61839.0,2.01919619]
[1728056863524,2.03518891,61840.0,61839.0,2.06678454]
[1728056864015,1.93705391,61840.0,61839.0,2.06678454]
[1728056864721,1.73983617,61840.0,61839.0,2.18932454]
[1728056864939,1.55688792,61840.0,61839.0,2.14173619]
[1728056865163,1.45866892,61840.0,61839.0,2.14173619]
[1728056865404,0.24336624,61853.0,61839.0,2.15072619]
[1728056865703,0.24336624,61853.0,61852.0,0.47203548]
[1728056865704,0.0886534,61853.0,61852.0,0.47203548]
[1728056865923,0.0886534,61853.0,61852.0,0.63522219]